{"text_format":"1","workbook":"xlsx","n_sheets":3,"sheets":["Main","List of Sites","Contact info."],"not_rendered":{"charts":0,"images":0,"macros":1,"external_links":0,"defined_names":3,"comments":3,"pivot_tables":0},"unopened":[],"bounds":{"document_bytes":16777216,"sheet_cells":100000,"rows_first":2000,"rows_last":500,"rows_between":2000,"halvings":0,"cell_chars":16384,"cell_head_chars":4096},"cells_cut":0,"cells_raw":0,"read":"whole","date_system":"1900"}

{"sheet":"Main","index":0,"n_rows":50,"n_cols":62,"rows_kept":50,"cut":false,"hidden":false,"merged":[[27,9,27,16],[6,10,6,11],[15,1,16,2],[10,0,11,2],[24,4,24,16],[25,4,25,16],[16,4,16,16],[17,4,17,16],[18,4,18,16],[19,4,19,16],[20,4,20,16],[21,4,21,16],[22,4,22,16],[6,4,6,9],[32,1,32,4],[45,2,46,3],[23,4,23,16],[31,1,31,3],[32,5,32,16],[35,5,35,16],[38,5,38,16],[39,5,39,16],[40,5,40,16],[41,5,41,16],[42,5,42,16],[34,10,34,11],[33,5,33,6],[34,5,34,6],[28,4,28,5],[28,8,28,12],[1,0,1,16],[6,12,6,16],[3,4,3,9],[3,10,3,16],[4,0,5,1],[4,4,4,16],[2,4,2,16],[5,4,5,16],[45,10,45,16],[45,4,45,9],[44,4,44,16],[47,4,47,12],[48,4,48,7],[48,9,48,12],[48,14,48,16],[46,4,46,16],[29,8,29,9],[30,8,30,9],[31,8,31,9],[36,5,36,6],[37,5,37,6]]}
["Application for Registration of ISO Management System",null,null,null,null,null,null,null,null,null,null,null,null,null,null,null,null,null,"選択肢"]
["I, the undersigned applicant, request the NIPPON KAIJI KYOKAI (ClassNK), to provide the certification services as described below in accordance with the “Rules for Certification of the Management Systems” and/or \"Rules for the certification of seafarer recruitment and placement service providers\"."]
["A1","Name of Organization"]
["A2","Address","Location",null,"ZIP",null,null,null,null,null,"Country/Area",null,null,null,null,null,null,null,"JAPAN","BARBADOS","CANADA","CHINA","CYPRUS","GERMANY","UNITED KINGDOM","GREECE","HONG KONG","CROATIA","INDONESIA","INDIA","ISRAEL","KOREA","MYANMAR","NETHERLANDS","PHILIPPINES","ROMANIA","SINGAPORE","THAILAND","TURKEY","TAIWAN","U.S.A.","VIETNAM","U.A.E.","ECUADOR","LEBANON","NORWAY","EGYPT","BELGIUM","OMAN","MEXICO","PANAMA","POLAND","JORDAN","MALAYSIA","BAHRAIN","BANGLADESH ","BRUNEI","FRANCE","SAUDI ARABIA","URUGUAY","GUYANA","Other"]
["Required to fill in the \"List of Sites\" sheet.",null,null,null,"Enter the address excl. the building name, the number of floors and room."]
[null,null,"URL"]
["A3","Top Management",null,null,"Name",null,null,null,null,null,"Position"]
["A4","Contact information",null,null,"Required to fill in the \"Contact info.\" sheet."]
[]
["B1-1","Applicable Standard",null,null,"ISO 9001 Quality Management Systems",null,null,null,null,null,null,null,null,null,null,null,null,null,false,{"$f":"IF(S10,\"ISO 9001 Quality Management Systems\",\"\")","v":""},{"$f":"IFERROR(INDEX(T:T,1/LARGE(INDEX((T$10:T$14<>\"\")/ROW($10:$14),),ROW(A1))),\"\")","v":""},{"$f":"IF(S10,\"Same as ISO 9001\",\"\")","v":""},{"$f":"IFERROR(INDEX(V:V,1/LARGE(INDEX((V$10:V$15<>\"\")/ROW($10:$15),),ROW(A1))),\"\")","v":""}]
["*Required to enter in B2 for more than 2 MSs applied.",null,null,null,"ISO 14001 Environmental Management Systems",null,null,null,null,null,null,null,null,null,null,null,null,null,false,{"$f":"IF(S11,\"ISO 14001 Environmental Management Systems\",\"\")","v":""},{"$f":"IFERROR(INDEX(T:T,1/LARGE(INDEX((T$10:T$14<>\"\")/ROW($10:$14),),ROW(A2))),\"\")","v":""},{"$f":"IF(S11,\"Same as ISO 14001\",\"\")","v":""},{"$f":"IFERROR(INDEX(V:V,1/LARGE(INDEX((V$10:V$15<>\"\")/ROW($10:$15),),ROW(A2))),\"\")","v":""}]
[null,null,null,null,"ISO 39001 Road Traffic Safety Management Systems",null,null,null,null,null,null,null,null,null,null,null,null,null,false,{"$f":"IF(S12,\"ISO 39001 Road Traffic Safety Management Systems\",\"\")","v":""},{"$f":"IFERROR(INDEX(T:T,1/LARGE(INDEX((T$10:T$14<>\"\")/ROW($10:$14),),ROW(A3))),\"\")","v":""},{"$f":"IF(S12,\"Same as ISO 39001\",\"\")","v":""},{"$f":"IFERROR(INDEX(V:V,1/LARGE(INDEX((V$10:V$15<>\"\")/ROW($10:$15),),ROW(A3))),\"\")","v":""}]
[null,null,null,null,"ISO 45001 Occupational Health and Safety Management Systems",null,null,null,null,null,null,null,null,null,null,null,null,null,false,{"$f":"IF(S13,\"ISO 45001 Occupational Health and Safety Management Systems\",\"\")","v":""},{"$f":"IFERROR(INDEX(T:T,1/LARGE(INDEX((T$10:T$14<>\"\")/ROW($10:$14),),ROW(A4))),\"\")","v":""},{"$f":"IF(S13,\"Same as ISO 45001\",\"\")","v":""},{"$f":"IFERROR(INDEX(V:V,1/LARGE(INDEX((V$10:V$15<>\"\")/ROW($10:$15),),ROW(A4))),\"\")","v":""}]
[null,null,null,null,"ISO 50001 Energy Management Systems",null,null,null,null,null,null,null,null,null,null,null,null,null,false,{"$f":"IF(S14,\"ISO 50001 Energy Management Systems\",\"\")","v":""},{"$f":"IFERROR(INDEX(T:T,1/LARGE(INDEX((T$10:T$14<>\"\")/ROW($10:$14),),ROW(A5))),\"\")","v":""},{"$f":"IF(S14,\"Same as ISO 50001\",\"\")","v":""},{"$f":"IFERROR(INDEX(V:V,1/LARGE(INDEX((V$10:V$15<>\"\")/ROW($10:$15),),ROW(A5))),\"\")","v":""}]
["B1-2","CERTIFICATION OF SEAFARER RECRUITMENT & PLACEMENT SERVICE PROVIDERS",null,null,null,null,null,null,null,null,null,null,null,null,null,null,null,null,0]
["B2","Conditions of integrated audit",null,"Please tick the column of the followings for the confirmation of compliance with the conditions of integrated audit."]
[null,null,null,null,"The scope of management systems (activities, products or services, organization) is the same."]
["*Not required for only 1 MS applied.",null,null,null,"The audit cycle of management systems is the same (or the organization agree with to be the same)."]
[null,null,null,null,"The integrated management system in single system documentation set, including work instructions to a good level of development, has been established."]
[null,null,null,null,"Management reviews are conducted with considering the overall business strategy and plan (or the organization is being planned to conduct)."]
[null,null,null,null,"Internal audits are conducted according to the integrated approach (or the organization is being planned to conduct)."]
[null,null,null,null,"Activities related policies and objectives are conducted and managed according to the integrated approach."]
[null,null,null,null,"Systems and processes are controlled according to the integrated approach."]
[null,null,null,null,"Improvement mechanisms (risk management, corrective action, measurement and continual Improvement) are controlled according to the integrated approach."]
[null,null,null,null,"Management support and responsibilities are integrated."]
[null,null,null,null,"As the auditee, the ability to respond to multi-aspect questions from audit teams is ensured."]
[]
["C","Kind of Audit",null,null,null,null,null,null,null,"Name of Current Certification Body",null,null,null,null,null,null,null,null,1]
[]
["D1","Time to start operation of the management system",null,null,null,null,null,null,"Month / Year",null,"*Required to fill for initial audit."]
[null,"Expected Date of Audit",null,null,null,"1st stage",null,null,"Month / Year",null,"*Required to fill for initial audit."]
[null,null,null,null,null,"2nd stage",null,null,"Month / Year",null,"*Required to fill for initial audit."]
["D2","Scope of Certification\n(Products, Services, Activities)"]
["D3","Personnel in Scope",null,"Number",null,null,null,"person(s) incl. part-time worker, temporary worker, cooperative company worker etc."]
[null,null,null,"Shift Work",null,"Not applied",null,"Number of shift worker",null,null,null,null,"Person(s)",null,null,null,null,null,"Not applied","2-shift","3-shift","Others"]
[null,null,null,null,"Details of Shift Work if applied"]
["D4","Site to be included in the scope",null,null,null,"Multi-Site",null,"*If \"Multi-site\", please enter the details in the sheet of \"List of Sites\".",null,null,null,null,null,null,null,null,null,null,"Single Site","Multi-site"]
["D5","Outsourced processes",null,null,null,"Not Applied",null,"*If \"Applied\", please enter the process in the column of D6.",null,null,null,null,null,null,null,null,null,null,"Applied","Not Applied"]
["D6","Details of outsouced processes",null,null,null,"Process 1"]
[null,null,null,null,null,"Process 2"]
[null,null,null,null,null,"Process 3"]
["D7","Management System Documents",null,null,null,"Title and Number of document, Revision number, Date of establishment etc."]
["D8","Consultant",null,null,null,"Name of consultant",null,null,null,null,null,null,null,null,null,null,null,null,"Not applied"]
[]
["E","Billing information","Name",null,null,null,null,null,null,null,null,null,null,null,null,null,null,null,"Same as A1","Others (Enter the details)"]
[null,null,"Address",null,"ZIP",null,null,null,null,null,"Country/Area",null,null,null,null,null,null,null,"JAPAN","BARBADOS","CANADA","CHINA","CYPRUS","GERMANY","UNITED KINGDOM","GREECE","HONG KONG","CROATIA","INDONESIA","INDIA","ISRAEL","KOREA","MYANMAR","NETHERLANDS","PHILIPPINES","ROMANIA","SINGAPORE","THAILAND","TURKEY","TAIWAN","U.S.A.","VIETNAM","U.A.E.","ECUADOR","LEBANON","NORWAY","EGYPT","BELGIUM","OMAN","MEXICO","PANAMA","POLAND","JORDAN","MALAYSIA","BAHRAIN","BANGLADESH ","BRUNEI","FRANCE","SAUDI ARABIA","URUGUAY","GUYANA","Other"]
[null,null,null,null,"To be included the building name, the number of floors and room."]
[null,null,"Position",null,null,null,null,null,null,null,null,null,null,"Preferable invoicing",null,null,"E-mail",null,"E-mail","Post/Courier"]
[null,null,"Person in charge",null,null,null,null,null,"E-mail",null,null,null,null,"Tel"]
["- End of this part.-"]

{"sheet":"List of Sites","index":1,"n_rows":21,"n_cols":56,"rows_kept":21,"cut":false,"hidden":false,"merged":[[20,2,20,5],[6,2,6,5],[7,2,7,5],[9,2,9,5],[12,2,12,5],[10,2,10,5],[15,2,15,5],[16,2,16,5],[17,2,17,5],[19,2,19,5],[13,2,13,3],[13,4,13,5],[14,2,14,5],[2,2,2,5],[5,2,5,5],[7,0,7,1],[17,0,17,1],[4,2,4,5],[3,2,3,3],[3,4,3,5],[14,0,14,1],[4,0,4,1]]}
["* If \"Multi-site\", please enter the followings.",null,null,null,null,null,null,"選択肢1","選択肢2","選択肢3","選択肢4"]
["Central function (Not necessarily the headquarters of the organization)"]
["Name"]
["Address",null,"ZIP",null,"Country/Region",null,null,null,null,null,null,null,"JAPAN","BARBADOS","CANADA","CHINA","CYPRUS","GERMANY","UNITED KINGDOM","GREECE","HONG KONG","CROATIA","INDONESIA","INDIA","ISRAEL","KOREA","MYANMAR","NETHERLANDS","PHILIPPINES","ROMANIA","SINGAPORE","THAILAND","TURKEY","TAIWAN","U.S.A.","VIETNAM","U.A.E.","ECUADOR","LEBANON","NORWAY","EGYPT","BELGIUM","OMAN","MEXICO","PANAMA","POLAND","JORDAN","MALAYSIA","BAHRAIN","BANGLADESH ","BRUNEI","FRANCE","SAUDI ARABIA","URUGUAY","GUYANA","Other"]
[null,null,"Enter the address excl. the building name, the number of floors and room."]
["Scope of Certification"]
["Number of Perssonel"]
["No. of Non-permanent personnel among mentioned above."]
["Shift Work",null,"Not applied","Number of shift worker",null,"person(s)",null,"Not applied","2-shift","3-shift","Others"]
["Details of Shift Work if applied"]
["Kind and level of control of each shift",null,null,null,null,null,null,"Same","Different"]
["Site No.1"]
["Name"]
["Address",null,"ZIP",null,"Country/Region",null,null,null,null,null,null,null,"JAPAN","BARBADOS","CANADA","CHINA","CYPRUS","GERMANY","UNITED KINGDOM","GREECE","HONG KONG","CROATIA","INDONESIA","INDIA","ISRAEL","KOREA","MYANMAR","NETHERLANDS","PHILIPPINES","ROMANIA","SINGAPORE","THAILAND","TURKEY","TAIWAN","U.S.A.","VIETNAM","U.A.E.","ECUADOR","LEBANON","NORWAY","EGYPT","BELGIUM","OMAN","MEXICO","PANAMA","POLAND","JORDAN","MALAYSIA","BAHRAIN","BANGLADESH ","BRUNEI","FRANCE","SAUDI ARABIA","URUGUAY","GUYANA","Other"]
[null,null,"Enter the address excl. the building name, the number of floors and room."]
["Scope of Certification"]
["Number of Perssonel"]
["No. of Non-permanent personnel among mentioned above."]
["Shift Work",null,"Not applied","Number of shift worker",null,"person(s)",null,"Not applied","2-shift","3-shift","Others"]
["Details of Shift Work if applied"]
["Kind and level of control of each shift",null,null,null,null,null,null,"Same","Different"]

{"sheet":"Contact info.","index":2,"n_rows":6,"n_cols":53,"rows_kept":6,"cut":false,"hidden":false,"merged":[[4,1,5,1],[1,2,1,7],[3,2,3,7],[2,2,2,3],[4,2,4,3],[5,2,5,7],[4,4,4,7]]}
["A4","Contact information",null,"*Required to enter the person in charge of each applicable standard by clicking \"Add person\"."]
[1,"In charge of MS",null,null,null,null,null,null,null,"ISO 9001 Quality Management Systems","ISO 14001 Environmental Management Systems","ISO 39001 Road Traffic Safety Management Systems","ISO 45001 Occupational Health and Safety Management Systems","ISO 50001 Energy Management Systems"]
[null,"Person in charge",null,null,"E-mail",{"$f":"IF(C3=N3,N3,IF(C3=U3,\"\",\"\"))","v":""},"Tel",{"$f":"IF(C3=N3,N3,IF(C3=U3,\"\",\"\"))","v":""},null,"Same as ISO 9001","Same as ISO 14001","Same as ISO 39001","Same as ISO 45001","Same as ISO 50001"]
[null,"Position"]
[null,"Address",{"$f":"IF(C3=\"\",\"ZIP\",\"\")","v":"ZIP"},null,{"$f":"IF(C3=\"\",\"Country/Region\",\"\")","v":"Country/Region"},null,null,null,null,"JAPAN","BARBADOS","CANADA","CHINA","CYPRUS","GERMANY","UNITED KINGDOM","GREECE","HONG KONG","CROATIA","INDONESIA","INDIA","ISRAEL","KOREA","MYANMAR","NETHERLANDS","PHILIPPINES","ROMANIA","SINGAPORE","THAILAND","TURKEY","TAIWAN","U.S.A.","VIETNAM","U.A.E.","ECUADOR","LEBANON","NORWAY","EGYPT","BELGIUM","OMAN","MEXICO","PANAMA","POLAND","JORDAN","MALAYSIA","BAHRAIN","BANGLADESH ","BRUNEI","FRANCE","SAUDI ARABIA","URUGUAY","GUYANA","Other"]
[null,null,{"$f":"IF(C3=\"\",\"To be included the building name, the number of floors and room.\",\"\")","v":"To be included the building name, the number of floors and room."}]